Cogmind - Beta 14 *** ADVENTURER MODE // 2024.09.30 @ 20:15:55 // Winter2019/RPGLIKE Player: Noname Result: Destroyed by G-47 Trooper with Particle Gun Performance ------------- Evolutions (3) 1500 Regions Visited (8) 1600 Robots Destroyed (52) 260 Value Destroyed (1637) 1637 Prototype IDs (24) 480 Alien Tech Used (0) 0 Bonus (388) 388 TOTAL SCORE: 5865 Bonus ------- Follower Combat Kills 166 Aligned with FarCom 300 Friendly Fire -78 Cogmind --------- Core Integrity 0/650 Matter 290/300 Energy 290/290 System Corruption 0% Temperature Cool (26) Movement Treading (160) Location -7/Factory Parts ------- > --- POWER (1) -------- Reinforced Deuterium Engine > --- PROPULSION (3) --- Medium Treads Medium Treads Medium Treads > --- UTILITY (8) ------ Improved Heat Sink Signal Interpreter Seismic Detector Advanced Targeting Computer Cloak of Protection Improved Medium Armor Plating Improved Shield Generator System Shield > --- WEAPON (2) ------- Assault Cannon Makeshift Hammer > --- INVENTORY (5) ---- Medium Treads Melee Analysis Suite Heavy Ion Cannon Precision Assault Rifle Heavy Rocket Launcher Peak State ------------ > --- POWER ------------ Reinforced Deuterium Engine > --- PROPULSION ------- Medium Treads Medium Treads Medium Treads > --- UTILITY ---------- Improved Heat Sink Signal Interpreter Seismic Detector Advanced Targeting Computer Cloak of Protection Improved Medium Armor Plating Improved Shield Generator System Shield > --- WEAPON ----------- Assault Cannon Makeshift Hammer > --- INVENTORY -------- Medium Treads Melee Analysis Suite Heavy Ion Cannon Precision Assault Rifle Heavy Rocket Launcher [Rating: 52] Favorites ----------- Power Ion Engine Engine Ion Engine Power Core Light Nuclear Core Propulsion Medium Treads Treads Medium Treads Leg Titanium Leg Wheel Armored Wheel Utility Signal Interpreter Device Improved Heat Sink Storage High-capacity Matter Pod Processor Signal Interpreter Hackware System Shield Protection Medium Armor Plating Weapon Makeshift Hammer Energy Gun EM Shotgun Ballistic Gun Shotgun Ballistic Cannon Assault Cannon Launcher Rocket Launcher Impact Weapon Makeshift Hammer Slashing Weapon Scythe Build | -11 -10 -10 -9 -9 -9 -8 -8 -7 ------- Run | Yrd Mat Min Mat Min Exi Min Mat Fac Slots Evolved 10 | 5 . . 2 . . . 3 . Power . | . . . . . . . . . Propulsion 2 | 1 . . 1 . . . . . Utility 7 | 3 . . 1 . . . 3 . Weapon 1 | 1 . . . . . . . . Parts Attached 52 | 2 10 5 7 6 . 7 13 2 Power 2 | . . . . . . 1 . 1 Engine 1 | . . . . . . . . 1 Core 1 | . . . . . . 1 . . Reactor . | . . . . . . . . . Propulsion 9 | 1 . . 5 . . . 3 . Treads 3 | . . . . . . . 3 . Leg 5 | 1 . . 4 . . . . . Wheel 1 | . . . 1 . . . . . Hover . | . . . . . . . . . Flight . | . . . . . . . . . Utility 14 | . 5 1 1 1 . . 5 1 Device 4 | . . . . 1 . . 3 . Storage 2 | . 1 1 . . . . . . Processor 3 | . 2 . . . . . 1 . Hackware 1 | . . . 1 . . . . . Protection 4 | . 2 . . . . . 1 1 Artifact . | . . . . . . . . . Weapon 27 | 1 5 4 1 5 . 6 5 . Energy Gun 3 | . 1 1 . . . . 1 . Energy Cannon . | . . . . . . . . . Ballistic Gun 5 | 1 3 . . . . 1 . . Ballistic Cannon 1 | . . . . . . . 1 . Launcher 9 | . 1 2 . 3 . 2 1 . Special Weapon . | . . . . . . . . . Impact Weapon 5 | . . 1 1 2 . 1 . . Slashing Weapon 4 | . . . . . . 2 2 . Piercing Weapon . | . . . . . . . . . Special Melee Weapon . | . . . . . . . . . Unidentified Prototypes 1 | . . . . . . . 1 . Parts Lost 1 | . . . . 1 . . . . Power . | . . . . . . . . . Propulsion . | . . . . . . . . . Utility 1 | . . . . 1 . . . . Weapon . | . . . . . . . . . Highest Loss Streak 1 | . . . . 1 . . . . To Critical Strikes . | . . . . . . . . . Average Slot Usage (%) 99 | . 94 100 96 99 100 100 99 100 Engine 5 | . 11 11 9 9 9 . . 1 Core 3 | . . . . . . 8 8 5 Treads 8 | . . . . . . . 24 21 Leg 15 | . 22 22 22 27 27 27 . . Device 9 | . . . . 7 9 9 13 28 Storage 7 | . 9 11 9 9 9 9 7 . Processor 18 | . 21 22 19 18 18 18 16 14 Hackware 5 | . . . 4 9 9 9 8 7 Protection 4 | . 7 11 9 1 . . 1 7 Energy Gun 1 | . 6 2 . . . . . . Ballistic Gun 5 | . 15 11 9 9 9 1 . . Ballistic Cannon 1 | . . . . . . . . 7 Launcher 1 | . . 4 2 2 9 . . . Impact Weapon 5 | . . 4 7 6 . 8 8 7 Slashing Weapon 2 | . . . . . . 7 7 . Peak Build Rating 52 | 5 12 14 24 25 24 29 48 52 Average Rating 27 | 4 11 12 18 24 24 28 38 49 On Entrance 20 | 3 5 12 12 24 24 24 28 48 Naked Turns . | . . . . . . . . . Heaviest Build 44 | 9 21 22 22 23 17 17 35 44 Greatest Support 84 | 20 20 20 51 51 51 51 84 84 Greatest Overweight (x) 1 | . 1 1 1 . . . . . Average Overweight (x) . | . . . . . . . . . Largest Inventory Capacity 5 | 1 1 1 4 5 5 5 5 5 Average Capacity 3 | 1 1 1 3 4 5 5 5 5 Most Carried 5 | 1 1 1 4 4 5 5 5 5 Average Carried 3 | 1 . 1 2 3 4 5 4 4 Final Capacity 5 | 1 1 1 4 5 5 5 5 5 Final Carried 5 | 1 1 1 4 4 5 5 5 5 Class Distribution -------------------- 37% | Hacker-Mutant 31% | Hacker-Gladiator 30% | Mutant Dominant Class ---------------- Mutant | -10/Materials Mutant | -10/Mines Hacker-Mutant | -9/Materials Hacker-Mutant | -9/Mines Hacker-Mutant | -9/Exiles Hacker-Gladiator | -8/Mines Hacker-Gladiator | -8/Materials Hacker-Mutant | -7/Factory Resources | -11 -10 -10 -9 -9 -9 -8 -8 -7 ----------- Run | Yrd Mat Min Mat Min Exi Min Mat Fac Matter Collected 1465 | 199 305 168 50 281 . 145 122 195 Remotely . | . . . . . . . . . Salvage Created 1135 | . 101 86 9 107 . 90 484 258 Parts 67 | . 8 7 4 16 . 10 15 7 Haulers Intercepted . | . . . . . . . . . Recyclers Shooed . | . . . . . . . . . Parts Field Recycled . | . . . . . . . . . Retrieved Matter . | . . . . . . . . . Parts Self-Destructed . | . . . . . . . . . Prevented . | . . . . . . . . . Kills | -11 -10 -10 -9 -9 -9 -8 -8 -7 ------- Run | Yrd Mat Min Mat Min Exi Min Mat Fac Combat Hostiles Destroyed 64 | . 1 6 . 28 . 7 14 8 Melee 8 | . . . . . . 1 5 2 Guns 9 | . 1 2 . 5 . 1 . . Cannons 4 | . . . . . . . . 4 AOE 33 | . . 4 . 23 . 5 . 1 Classes Destroyed 12 | . 2 1 . 4 . 2 2 1 Builder 2 | . . . . 2 . . . . Tunneler 1 | . . . . 1 . . . . Watcher 4 | . 3 . 1 . . . . . Swarmer 19 | . . 4 . 6 . 3 3 3 Grunt 9 | . 1 2 . 2 . 2 2 . Brawler 1 | . . . . . . . 1 . Duelist 2 | . . . . . . 1 1 . Sentry 8 | . . . . . . . 6 2 Demolisher 1 | . . . . 1 . . . . Hunter 2 | . . . . . . 1 1 . Programmer 3 | . . . . . . . . 3 Assembled 19 | . . . . 19 . . . . Best Kill Streak 22 | . 2 3 1 22 . 3 4 3 Combat Bots Only 22 | . 1 3 . 22 . 3 4 3 Max Kills in Single Turn 4 | . 1 2 1 4 . 3 1 1 Gunslinging . | . . . . . . . . . Exploded 4 | . . 2 . 4 . 3 . 1 Melee 1 | . . . . . . 1 1 1 Uniques/NPCs Destroyed . | . . . . . . . . . Combat | -11 -10 -10 -9 -9 -9 -8 -8 -7 -------- Run | Yrd Mat Min Mat Min Exi Min Mat Fac Hostile Shots Fired 320 | . 1 13 8 65 . 18 73 142 Missed 101 | . . 3 3 19 . 9 24 43 Damage Taken 2351 | . 9 117 49 778 . 89 437 872 Core 1696 | . 3 81 31 553 . 70 338 620 Absorbed by Shields 7 | . . . . . . . . 7 Redirected to Core 1482 | . 3 74 31 433 . 63 293 585 Ignored by Resistances 891 | . 3 37 16 268 . 37 195 335 Core Remaining (%) 88 | 100 . 87 . . . 74 94 . Volleys Fired 86 | . 7 10 2 22 . 6 2 37 Largest 2 | . 2 1 1 1 . 1 1 1 Hottest 68 | . 68 30 23 33 . 33 44 44 Shots Fired 92 | . 13 10 2 22 . 6 2 37 Gun 29 | . 12 6 2 7 . 2 . . Cannon 39 | . . . . . . . 2 37 Launcher 24 | . 1 4 . 15 . 4 . . Special . | . . . . . . . . . Kinetic 63 | . 7 6 2 7 . 2 2 37 Thermal . | . . . . . . . . . Explosive 24 | . 1 4 . 15 . 4 . . Electromagnetic 5 | . 5 . . . . . . . Robot Hit Streak 10 | . 5 10 3 6 . 4 3 10 Robot Miss Streak 4 | . 4 1 1 4 . 1 1 1 Penetration Max . | . . . . . . . . . Secondary Targets . | . . . . . . . . . Shots Hit Robots 112 | . 7 9 2 16 . 8 35 35 Core Hits 88 | . 5 9 2 43 . 13 6 10 Critical Kills 1 | . . . . . . . 1 . Critical Parts Destroyed 7 | . . . . . . . 5 2 Critical Strikes 11 | . . . . . . . 8 3 Blast 1 | . . . . . . . . 1 Smash 9 | . . . . . . . 7 2 Sever 1 | . . . . . . . 1 . Melee Attacks 84 | . . . . 5 . 6 60 13 Impact 76 | . . . . 5 . 6 52 13 Slashing 8 | . . . . . . . 8 . Piercing . | . . . . . . . . . Sneak Attacks 1 | . . . . . . . 1 . Combat Hostiles 1 | . . . . . . . 1 . Follow-up Attacks 6 | . . . . . . . 6 . Damage Inflicted 5693 | . 140 531 18 1796 . 587 1509 1112 Guns 385 | . 140 106 18 89 . 32 . . Cannons 914 | . . . . . . . 49 865 Explosions 2592 | . . 425 . 1637 . 437 . 93 Melee 1802 | . . . . 70 . 118 1460 154 Ramming . | . . . . . . . . . Kinetic 1194 | . 35 106 18 89 . 32 49 865 Thermal . | . . . . . . . . . Explosive 2592 | . . 425 . 1637 . 437 . 93 Electromagnetic 105 | . 105 . . . . . . . Impact 1647 | . . . . 70 . 118 1305 154 Slashing 155 | . . . . . . . 155 . Piercing . | . . . . . . . . . Highest Corruption 1 | . . . 1 1 1 1 . . Average Corruption 1 | . . . 1 1 1 1 . . Corruption Purged . | . . . . . . . . . Corruption Blocked . | . . . . . . . . . Effects 12 | . . . 2 6 1 3 . . Message Errors 4 | . . . . 4 . . . . Matter Fused 4 | . . . 1 . . 3 . . Heat Flow Errors 1 | . . . . 1 . . . . Energy Discharges 2 | . . . 1 1 . . . . Data Loss (minor) 1 | . . . . . 1 . . . Overload Shots . | . . . . . . . . . Overflow Damage 717 | . . . . 119 . 33 421 144 Projectiles 26 | . . . . . . . . 26 Explosions 109 | . . . . 109 . . . . Melee 582 | . . . . 10 . 33 421 118 Knockbacks 13 | . . . . . . . 6 7 Impact 6 | . . . . . . . 6 . Kinetic 7 | . . . . . . . . 7 Secondary . | . . . . . . . . . Self-Inflicted Damage 202 | . . 37 . 101 . . . 64 Shots 7 | . . 2 . 4 . . . 1 Rammed . | . . . . . . . . . Targets Rammed . | . . . . . . . . . Kicked . | . . . . . . . . . Crushed . | . . . . . . . . . Highest Temperature 155 | . 15 13 1 155 . 2 . 22 Average Temperature 15 | . 10 7 1 42 . 2 . 9 Received Heat Transfer 468 | . 6 33 24 20 . 27 135 223 Siege Activations . | . . . . . . . . . Robots Corrupted 10 | . . . . . . . 9 1 Combat Hostiles 10 | . . . . . . . 9 1 Parts Fried 14 | . . . . . . . 13 1 Impact Corruptions 25 | . . . . 1 . 1 19 4 Robots Melted . | . . . . . . . . . Combat Hostiles . | . . . . . . . . . Parts Melted . | . . . . . . . . . Heat Transferred . | . . . . . . . . . Parts Sabotaged . | . . . . . . . . . Parts Stolen . | . . . . . . . . . Parts Stripped . | . . . . . . . . . Power Chain Reactions . | . . . . . . . . . Alert | -11 -10 -10 -9 -9 -9 -8 -8 -7 ------- Run | Yrd Mat Min Mat Min Exi Min Mat Fac Peak Influence 317 | . 63 91 317 236 . 171 278 249 Initial 97 | . . 14 9 97 . . 56 33 Average 90 | . 26 38 199 187 . 45 117 86 Maximum Alert Level 1 | . . . 1 1 . . 1 1 Low Security (%) 80 | 100 100 100 38 40 . 100 72 85 Level 1 19 | . . . 61 59 . . 27 14 Level 2 . | . . . . . . . . . Level 3 . | . . . . . . . . . Level 4 . | . . . . . . . . . Level 5 . | . . . . . . . . . High Security . | . . . . . . . . . Max Security . | . . . . . . . . . Squads Dispatched 6 | . . . 2 . . . 1 3 Investigation 2 | . . . 1 . . . . 1 Extermination 2 | . . . . . . . . 2 Reinforcement 2 | . . . 1 . . . 1 . Assault . | . . . . . . . . . Garrison . | . . . . . . . . . Intercept . | . . . . . . . . . Searches Triggered . | . . . . . . . . . Construction Impeded . | . . . . . . . . . Haulers Reinforced . | . . . . . . . . . Active Scanning Responses . | . . . . . . . . . Cargo Convoy Interrupts . | . . . . . . . . . Stealth | -11 -10 -10 -9 -9 -9 -8 -8 -7 --------- Run | Yrd Mat Min Mat Min Exi Min Mat Fac Distress Signals 4 | . 1 . 2 . . . 1 . Communications Jammed . | . . . . . . . . . Distress Signals . | . . . . . . . . . Times Spotted 95 | . 5 7 12 29 . 7 21 14 Peak Tracking Total 17 | . 1 3 5 17 . 3 10 4 Tactical Retreats 10 | . . . 1 . . . 8 1 Traps | -11 -10 -10 -9 -9 -9 -8 -8 -7 ------- Run | Yrd Mat Min Mat Min Exi Min Mat Fac Traps Triggered 2 | . . . . . . . . 2 Indirectly . | . . . . . . . . . Trap Hack Attempts . | . . . . . . . . . Triggered . | . . . . . . . . . Disarmed . | . . . . . . . . . Reprogrammed . | . . . . . . . . . Reused . | . . . . . . . . . Traps Extracted . | . . . . . . . . . Installed . | . . . . . . . . . Triggered . | . . . . . . . . . Machines | -11 -10 -10 -9 -9 -9 -8 -8 -7 ---------- Run | Yrd Mat Min Mat Min Exi Min Mat Fac Machines Disabled 8 | . . 1 1 1 . 1 . 4 Max in Single Turn 2 | . . 1 . 1 . 1 . 2 Garrison Access 2 | . . . . . . . 1 1 Machines Repaired . | . . . . . . . . . Machines Dismantled . | . . . . . . . . . Machines Sabotaged . | . . . . . . . . . Overloaded Fab Kills . | . . . . . . . . . Hacking | -11 -10 -10 -9 -9 -9 -8 -8 -7 --------- Run | Yrd Mat Min Mat Min Exi Min Mat Fac Machines Accessed 20 | . 2 . 1 . 1 . 10 6 Terminals 14 | . 2 . 1 . . . 8 3 Fabricators 1 | . . . . . . . . 1 Repair Stations . | . . . . . . . . . Recycling Units 2 | . . . . . . . 1 1 Scanalyzers . | . . . . . . . . . Garrison Access 2 | . . . . . . . 1 1 Total Hacks 85 | . 7 . 4 . 1 . 55 18 Successful 50 | . 5 . 4 . 1 . 29 11 Failed 35 | . 2 . . . . . 26 7 Catastrophic 4 | . . . . . . . 3 1 Database Lockouts . | . . . . . . . . . Manual 61 | . 6 . 4 . 1 . 38 12 Terminals 76 | . 7 . 4 . . . 51 14 Fabricators 2 | . . . . . . . . 2 Repair Stations . | . . . . . . . . . Recycling Units 3 | . . . . . . . 2 1 Scanalyzers . | . . . . . . . . . Garrison Access 3 | . . . . . . . 2 1 Terminal Hacks 23 | . 3 . 1 . 1 . 15 3 Robot Analysis 1 | . . . . . . . 1 . Level Access Points 1 | . . . . . . . 1 . Branch Access Points 2 | . 1 . . . . . 1 . Terminal Index 2 | . . . 1 . . . 1 . Scanalyzer Index 1 | . . . . . . . 1 . Garrison Index 1 | . . . . . . . . 1 Alert Level 3 | . . . . . . . 3 . Unreport Threat 2 | . . . . . . . 1 1 Locate Traps 5 | . 1 . . . . . 3 1 Dispatch Records 1 | . 1 . . . . . . . Maintenance Status 1 | . . . . . . . 1 . Transport Status 1 | . . . . . . . 1 . Recall Reinforcements 1 | . . . . . . . 1 . Derelict Proto ID Bank 1 | . . . . . 1 . . . Fabricator Hacks 1 | . . . . . . . . 1 Network Status 1 | . . . . . . . . 1 Repair Station Hacks . | . . . . . . . . . Recycling Unit Hacks 1 | . . . . . . . 1 . Report Inventory 1 | . . . . . . . 1 . Scanalyzer . | . . . . . . . . . Garrison Access Hacks 2 | . . . . . . . 1 1 Seal Access 2 | . . . . . . . 1 1 Unauthorized Hacks 23 | . 2 . 3 . . . 12 6 Terminals 21 | . 2 . 3 . . . 11 5 Track 9 | . 1 . 1 . . . 5 2 Assimilate 1 | . . . 1 . . . . . Botnet 10 | . 1 . 1 . . . 5 3 Operators 1 | . . . . . . . 1 . Fabricators 1 | . . . . . . . . 1 Haulers 1 | . . . . . . . . 1 Repair Stations . | . . . . . . . . . Recycling Units 1 | . . . . . . . 1 . Recyclers 1 | . . . . . . . 1 . Scanalyzers . | . . . . . . . . . Garrison Access . | . . . . . . . . . Data Cores Recovered . | . . . . . . . . . Used . | . . . . . . . . . Hacking Detections 16 | . 2 . 1 . . . 8 5 Full Trace Events 2 | . . . 1 . . . . 1 Feedback Events 1 | . . . 1 . . . . . Corruption 1 | . . . 1 . . . . . Feedback Blocked . | . . . . . . . . . Robot Schematics Acquired . | . . . . . . . . . Robots Built . | . . . . . . . . . Authchips . | . . . . . . . . . Time . | . . . . . . . . . Total Robot Build Rating . | . . . . . . . . . Part Schematics Acquired . | . . . . . . . . . Parts Built . | . . . . . . . . . Authchips . | . . . . . . . . . Time . | . . . . . . . . . Total Part Build Rating . | . . . . . . . . . Parts Repaired . | . . . . . . . . . Time . | . . . . . . . . . Parts Recycled . | . . . . . . . . . Recycled Matter . | . . . . . . . . . Retrieved Matter . | . . . . . . . . . Retrieved Components . | . . . . . . . . . Parts Scanalyzed . | . . . . . . . . . Part Schematics Acquired . | . . . . . . . . . Parts Damaged . | . . . . . . . . . Bothacking | -11 -10 -10 -9 -9 -9 -8 -8 -7 ------------ Run | Yrd Mat Min Mat Min Exi Min Mat Fac Used RIF Installer . | . . . . . . . . . Robots Hacked . | . . . . . . . . . Non-combat . | . . . . . . . . . Combat . | . . . . . . . . . Robot Hacks Applied . | . . . . . . . . . Relay Couplers Released . | . . . . . . . . . Fabnet Peak Effective % . | . . . . . . . . . Robots Rewired . | . . . . . . . . . Allies Hacked . | . . . . . . . . . Hacks Repelled . | . . . . . . . . . Allies | -11 -10 -10 -9 -9 -9 -8 -8 -7 -------- Run | Yrd Mat Min Mat Min Exi Min Mat Fac Total Allies 6 | . . 4 . 2 . . . . Largest Group 4 | . . 4 4 2 2 . . . Highest-Rated Group 71 | . . 71 71 49 49 . . . Highest-Rated Ally 31 | . . 31 31 31 31 . . . Total Orders . | . . . . . . . . . Ally Attacks 54 | . . . 51 3 . . . . Total Damage 641 | . . . 600 41 . . . . Kills 15 | . . . 14 1 . . . . Allies Corrupted . | . . . . . . . . . Allies Melted . | . . . . . . . . . Intel | -11 -10 -10 -9 -9 -9 -8 -8 -7 ------- Run | Yrd Mat Min Mat Min Exi Min Mat Fac Robot Analysis Total 1 | . . . . . . . 1 . Derelict Logs Recovered 3 | . . 2 . 1 . . . . Drone Launches . | . . . . . . . . . Drone Recoveries . | . . . . . . . . . Exploration | -11 -10 -10 -9 -9 -9 -8 -8 -7 ------------- Run | Yrd Mat Min Mat Min Exi Min Mat Fac Turns Passed 6071 | 14 693 1041 262 730 301 746 1410 874 Spaces Moved 3461 | 9 404 593 180 470 230 487 639 449 Core . | . . . . . . . . . Treads 1082 | . . . . . . . 633 449 Legs 2310 | 9 404 593 111 470 230 487 6 . Wheels 69 | . . . 69 . . . . . Hover . | . . . . . . . . . Flight . | . . . . . . . . . Fastest Speed 105 | 120 120 120 105 130 130 130 130 160 Average Speed 146 | 120 153 158 120 130 130 130 159 160 Slowest Speed 200 | 120 190 190 200 130 130 130 160 160 Overloaded Moves . | . . . . . . . . . Propulsion Burnouts . | . . . . . . . . . Robots Hopped . | . . . . . . . . . Cave-ins Triggered . | . . . . . . . . . Exploration Rate (%) 54 | 2 59 94 21 99 61 97 42 17 Regions Visited 8 Branch Regions 4 Pre-discovered Areas 3 | . . 3 . . . . . . Known Exits Taken 7 | . 1 1 1 1 1 1 1 . Unknown Exits Taken 1 | 1 . . . . . . . . Scrap Searched 4 | . . 1 . 2 . 1 . . Spaces Dug 33 | . . . . 10 . . 14 9 Terrain Destroyed 264 | . 13 33 . 135 . 37 14 32 Melee 23 | . . . . . . . 14 9 Projectile . | . . . . . . . . . AOE 241 | . 13 33 . 135 . 37 . 23 Terrain Rammed . | . . . . . . . . . Walls Destroyed . | . . . . . . . . . Machines Disabled . | . . . . . . . . . Actions | -11 -10 -10 -9 -9 -9 -8 -8 -7 --------- Run | Yrd Mat Min Mat Min Exi Min Mat Fac Total 4289 | 11 464 680 224 560 232 585 976 557 Wait 503 | . 38 70 17 40 . 66 222 50 Move 3453 | 8 403 592 179 469 229 486 638 449 Hop . | . . . . . . . . . Pick Up 25 | 1 1 . 5 3 2 1 10 2 Fast Attach 19 | 2 6 1 3 . . 1 6 . Attach 5 | . . . 1 1 . . 3 . Detach 3 | . . . 2 . . . 1 . Swap 28 | . 4 4 3 5 . 6 4 2 Drop 34 | . 5 2 5 2 1 2 13 4 Fire 86 | . 7 10 2 22 . 6 2 37 Melee 76 | . . . . 5 . 6 52 13 Ram . | . . . . . . . . . Kick . | . . . . . . . . . Crush . | . . . . . . . . . Escape Stasis . | . . . . . . . . . Rewire . | . . . . . . . . . Trap . | . . . . . . . . . Miscellaneous 57 | . . 1 7 13 . 11 25 . Route ------- -11/Scrapyard -10/Materials (discovered 3 exits: *Mat / *Min x2) -10/Mines -9/Materials -9/Mines (discovered 3 exits: *Mat x2 / *Exi) -9/Exiles -8/Mines -8/Materials (discovered 3 exits: *Fac x3) -7/Factory History --------- Turn | Location | Event 1 | -11/Scrapyard | Upgraded with Propulsion slot (x1) 1 | -11/Scrapyard | Upgraded with Utility slot (x3) 1 | -11/Scrapyard | Upgraded with Weapon slot (x1) 2 | -11/Scrapyard | Discovered new exit (range 1) 15 | -11/Scrapyard | Entered Materials 25 | -10/Materials | Identified exit to Mines 237 | -10/Materials | Discovered new exit (range 14) 284 | -10/Materials | Identified exit to Materials 302 | -10/Materials | Build established: Mutant 708 | -10/Materials | Entered Mines 743 | -10/Mines | Met a Derelict bent on vengeance 938 | -10/Mines | A weapon hastily lodged in a ceiling crevice suddenly fell to the ground 959 | -10/Mines | Discovered exit to Materials (range 5) 966 | -10/Mines | Assisted by bots powering up and referring to "LRC-V3" 1375 | -10/Mines | Found a hidden stash of uninstalled traps 1468 | -10/Mines | Learned location of Storage (-7) 1469 | -10/Mines | Learned location of Zion (-6) 1588 | -10/Mines | Reached level 2 1589 | -10/Mines | Escorted by a lone wolf Derelict 1749 | -10/Mines | Entered Materials 1749 | -9/Materials | Accompanied by 4 allies 1751 | -9/Materials | Reached level 3 1819 | -9/Materials | Reached level 4 1819 | -9/Materials | Upgraded with Propulsion slot (x1) 1819 | -9/Materials | Upgraded with Utility slot (x1) 1940 | -9/Materials | Discovered new exit (range 7) 1953 | -9/Materials | Identified exit to Mines 2011 | -9/Materials | Entered Mines 2011 | -9/Mines | Reached level 5 2029 | -9/Mines | Assembled infested the area 2086 | -9/Mines | Destroyed 22 combat bots 2165 | -9/Mines | Core integrity fell below 50% 2196 | -9/Mines | Build established: Hacker-Mutant 2371 | -9/Mines | Discovered new exit (range 13) 2383 | -9/Mines | Identified exit to Materials 2482 | -9/Mines | Learned Materials garrison access intel 2547 | -9/Mines | Discovered exit to Materials (range 11) 2674 | -9/Mines | Reached level 6 2720 | -9/Mines | Deemed a non-threat by the Exiles lab entrance 2721 | -9/Mines | Discovered new exit (range 5) 2725 | -9/Mines | Identified exit to Exiles 2741 | -9/Mines | Entered Exiles 2741 | -9/Exiles | Accompanied by 2 allies 2771 | -9/Exiles | Led the pair of lost Derelicts to a safe place 2774 | -9/Exiles | Met 8R-AWN 2795 | -9/Exiles | Met EX-HEX 2834 | -9/Exiles | Met EX-BIN 2858 | -9/Exiles | Aligned with FarCom system 2860 | -9/Exiles | Given EX-Vault access code 2901 | -9/Exiles | Opened EX-Vault 2910 | -9/Exiles | Found Cloak of Protection 2939 | -9/Exiles | Warned to stay clear of 0b10 Research branches 2979 | -9/Exiles | Met EX-DEC 3030 | -9/Exiles | Discovered new exit (range 11) 3040 | -9/Exiles | Identified exit to Mines 3042 | -9/Exiles | Left Exiles lab with Cloak of Protection 3042 | -9/Exiles | Entered Mines 3425 | -8/Mines | Build established: Hacker-Gladiator 3605 | -8/Mines | Reached level 7 3772 | -8/Mines | Discovered exit to Materials (range 5) 3788 | -8/Mines | Entered Materials 3789 | -8/Materials | Loaded intel: 1 garrison access location 3790 | -8/Materials | Reached level 8 4311 | -8/Materials | Reached level 9 4753 | -8/Materials | Upgraded with Utility slot (x3) 5066 | -8/Materials | Identified exit to Factory 5198 | -8/Materials | Entered Factory 5200 | -7/Factory | Reached level 10 5200 | -7/Factory | Reached level 11 5360 | -7/Factory | Core integrity fell below 50% 5373 | -7/Factory | Build established: Hacker-Mutant 5464 | -7/Factory | Core integrity fell below 20% 6008 | -7/Factory | Reached level 12 6072 | -7/Factory | Destroyed by G-47 Trooper with Particle Gun Last Messages --------------- 06008_ Connecting with Terminal... >>Trojan(Botnet) Trojan loaded successfully. Testing... Terminal linked with 2 systems. Awaiting botnet instructions. >>Trojan(Track) Trojan loaded successfully. Testing... Tracking enabled and active. 06008_ Reached level 12. >>Index(Garrisons) Found 3 garrison accesses. Downloaded coordinate data. 06008_ ALERT: Suspicious activity at Terminal F019. Dispatching Investigation squad. 06069_ Repair Station disabled. 06069_ Backup Laser I tumbles out of repair station. 06069_ Backup Plating I tumbles out of repair station. 06069_ Backup Laser I tumbles out of repair station. Map ----- +----------------------------------------------------+ | | | | | | | | | | | | | | | | | | | | | | | | | | | | | ?????????????????????????????????????????????????? | | ?????????????????????????????????????????????????? | | ?????????????????????????????????????????????????? | | ??????????????????????######?????????????????????? | | ??????????????????????# #?????????????????????? | | ??????????????????????# #?????????????????????? | | ??????????######??????# #?????????????????????? | | ??????????# ??????# +?????????????????????? | | ??????????# #?????# #?????????????????????? | | ??????????# #?????# #?????????????????????? | | ??????????# #?????# #?????????????????????? | | ??????????# #?????# @ #?????????????????????? | | ??????????# #?????# ##+###### ???????????? | | ??????????# #?????# ??????????? | | ??????????# #?????# ??????????? | | ??????????# #?????# ??????????? | | ??????????# ###???# ??????????? | | ??????????# + #???# [![ ??????????? | | ########### # #???# " "g"""g""" ???????????? | | # ####### ###?# "R% """ """?????????????? | | # ##### #?# """ """g""" #????????? | | ]# T" ### ????????? | | # ] "" ????????? | | # =############### ?????????? | | # ##### #????????????????????????????? | | # #??####+#####??????????????????????????? | | ]### ###??# ! #??????????????????????????? | | #?# #????# """ #??????????????????????????? | | #?# #????#] """ #??????????????????????????? | | #?# #????# """ !#??????????????????????????? | | ### ##???# #??????????????????????????? | | #+## #???# ] """ +??????????????????????????? | | T #???# """ ##?????????????????????????? | | "" #???# """ #??????????????????????????? | | #???# ?????????????????????????????? | | ## #???######??????????????????????????????? | +----------------------------------------------------+ Best States ------------- Heat Dissipation 39 Energy Generation 21 Energy Capacity 290 Matter Stores 500 Matter Capacity 500 Sight Range 16 Terrain Scan Density 10 Armor Coverage 225 Resistance: KI 30 Resistance: TH 25 Resistance: EX 20 Resistance: EM 20 Resistance: I 20 Resistance: S 20 Resistance: P 20 Evasion (%) 55 Targeting Accuracy 8 Recoil Reduction 3 Offensive Hacking 25 Defensive Hacking 20 Item Schematics ----------------- None Robot Schematics ------------------ None Fabricated ------------ Nothing Alien Tech Used ----------------- None Achievements -------------- None Challenges ------------ None RPGLIKE | -11 -10 -10 -9 -9 -9 -8 -8 -7 --------- Run | Yrd Mat Min Mat Min Exi Min Mat Fac Levels Raised 11 | . . 1 2 2 . 1 2 3 XP Earned 20565 | 4000 240 1265 4402 1738 350 1661 3435 3474 XP Spent 18225 | 3650 . . 4750 1600 . . 6000 2225 Upgrades 25 | 6 . . 7 2 . . 3 7 Propulsion Slot 2 | 1 . . 1 . . . . . Utility Slot 7 | 3 . . 1 . . . 3 . Weapon Slot 1 | 1 . . . . . . . . Core Integrity 1 | . . . . . . . . 1 Energy Generation 1 | . . . . . . . . 1 Inventory Capacity 5 | 1 . . 3 1 . . . . Hack Attack % 3 | . . . . . . . . 3 Hack Defense % 2 | . . . . . . . . 2 KI Resistance % 2 | . . . 1 1 . . . . TH Resistance % 1 | . . . 1 . . . . . Protomatter Created 365 | . . 3 . 74 . 75 213 . Integrity Restored 1145 | . . 9 143 264 . 225 504 . Core 1042 | . . 9 86 264 . 225 458 . Parts 103 | . . . 57 . . . 46 . Protomatter Decayed 257 | . . 81 124 9 . . 43 . Game ------ Seed CompanionBattleBay Manual? 0 Play Time 00:59:29 Cumulative 195.8 hours Start 2024.09.29 @ 22:59:07 End 2024.09.30 @ 20:15:55 Sessions 8 Manual Loads 0 Difficulty Adventurer Special Mode Winter2019/RPGLIKE Game No. 67 Rogue 28 Adventurer 39 Explorer 0 Win Type - Total 10 Types 8/0/2/0/0/0/0/0/0 Lore% 44 Gallery% 66 Achievement% 64 Wizard Run 0 Options --------- Layout 0 ASCII 0 Keyboard 1 Movement Vi Keybinds 0 Fullscreen 2 Font 18/SmallcapsGlow Map View 76x50 Zoom Use 0% Tactical HUD 1 Map Filters NONE Filters NONE Steam X RUN: 7b5522dd-9adf-44a1-adf9-197b4118f31a